bitfinex/quotes_ETHUSD_20250724
["timestamp","ask_amount","ask_price","bid_price","bid_amount"]
[1753376724834,0.4783,3707.5,3707.1,4.465]
[1753376725039,0.1352,3707.4,3707.1,4.465]
[1753376725574,2.69716514,3707.6,3707.1,4.465]
[1753376725575,0.1352,3707.2,3707.1,4.465]
[1753376725881,0.1352,3707.2,3707.1,7.06252636]
[1753376726043,2.69675308,3708.2,3707.1,9.0067444]
[1753376726044,0.4783,3708.2,3707.1,9.0067444]
[1753376726249,0.1352,3707.6,3707.5,2.69719379]
[1753376726445,0.1352,3707.6,3707.1,0.91692037]
[1753376726664,0.95168786,3712.0,3707.0,3.37952403]
[1753376726665,0.5064,3710.9,3708.1,0.2048886]
[1753376726859,0.1344,3710.8,3710.0,0.833]
[1753376727059,0.002,3710.9,3710.3,0.1344]
[1753376727260,0.4803,3710.9,3710.4,0.02695127]
[1753376727465,0.9496,3710.8,3710.0,7.85]
[1753376727663,0.1344,3710.4,3710.3,2.69519984]
[1753376727865,0.1344,3710.4,3710.0,7.85]
[1753376728082,0.1344,3710.4,3710.1,4.576]
[1753376728293,0.1344,3710.4,3710.2,4.578]
[1753376728865,2.69519984,3710.3,3710.0,7.85]
[1753376729051,0.1344,3710.1,3710.0,7.017]
[1753376729391,0.1344,3710.1,3709.6,0.1344]
[1753376729392,1.084,3710.1,3709.6,0.1344]
[1753376729576,2.69577377,3709.6,3709.1,0.1352]
[1753376729765,0.9496,3709.5,3709.2,4.573]
[1753376729950,2.69592645,3709.3,3709.2,4.573]
[1753376730285,3.30862645,3709.3,3709.2,4.573]
[1753376730681,2.6955631,3709.8,3709.2,4.573]
[1753376730857,2.83019613,3709.5,3709.2,4.573]
[1753376731063,2.83019681,3709.5,3709.2,4.573]
[1753376731589,2.69585703,3709.4,3709.3,4.57]
[1753376731773,2.83018343,3709.5,3709.0,0.1352]
[1753376731972,0.1344,3709.5,3709.1,4.566]
[1753376732178,2.83018693,3709.5,3709.1,4.566]
[1753376732486,0.1344,3709.5,3709.1,4.566]
[1753376732683,0.6127,3709.5,3709.1,4.566]
[1753376732893,2.8302387,3709.5,3709.1,4.566]
[1753376733293,3.30849592,3709.5,3709.1,4.566]
[1753376733462,2.69593679,3709.3,3709.1,4.566]
[1753376733790,2.83039913,3709.2,3709.1,4.566]
[1753376734579,3.77999913,3709.2,3709.1,4.566]
[1753376736301,0.1344,3709.2,3709.1,4.566]
[1753376736499,2.83039913,3709.2,3709.1,4.566]
[1753376736905,0.1344,3709.2,3709.1,4.566]
[1753376737067,2.83039913,3709.2,3709.1,4.566]
[1753376737262,0.6127,3709.2,3709.1,4.566]
[1753376737467,3.30869913,3709.2,3709.1,4.566]
[1753376737705,3.77999913,3709.2,3709.1,4.566]
[1753376738822,3.30169913,3709.2,3709.1,4.566]
[1753376739189,3.77999913,3709.2,3709.1,4.566]
[1753376741690,2.83239913,3709.2,3709.1,4.566]
[1753376741960,3.78199913,3709.2,3709.1,4.566]
[1753376743702,2.6963626,3708.7,3708.6,7.016]
[1753376743892,2.8315626,3708.7,3708.6,11.539]
[1753376744091,3.7811626,3708.7,3708.6,11.539]
[1753376744323,3.7811626,3708.7,3708.6,4.523]
[1753376744834,2.69714838,3707.7,3707.3,0.1352]
[1753376745145,2.69714838,3707.7,3707.4,4.52]
[1753376745146,0.1352,3707.6,3707.4,4.52]
[1753376745290,2.83236516,3707.6,3707.4,4.52]
[1753376745639,2.69723533,3707.5,3707.4,4.52]
[1753376745789,2.69738084,3707.3,3707.2,7.015]
[1753376745996,0.1352,3707.4,3707.2,11.533]
[1753376747126,0.4489,3708.5,3707.4,2.69730808]
[1753376747349,0.1352,3708.3,3707.5,7.72657073]
[1753376747525,0.1352,3708.3,3707.5,7.69959838]
[1753376747695,0.1352,3708.3,3707.7,2.83224352]
[1753376747895,0.1352,3708.3,3707.8,4.516]
[1753376748095,2.69658073,3708.4,3707.8,4.516]
[1753376748295,0.1352,3708.1,3707.8,4.516]
[1753376748498,2.83205302,3708.1,3707.8,4.516]
[1753376748741,2.69688703,3708.0,3707.8,4.516]
[1753376748898,3.62878703,3708.0,3707.8,4.516]
[1753376749411,0.4489,3708.0,3707.8,4.516]
[1753376749610,2.83202164,3708.1,3707.8,4.516]
[1753376749834,2.69692332,3708.0,3707.8,4.516]
[1753376750127,0.1352,3708.1,3707.8,4.516]
[1753376750496,2.69687162,3708.0,3707.8,4.516]
[1753376751740,2.69689525,3708.0,3707.8,4.516]
[1753376752248,3.76392334,3708.1,3707.8,4.516]
[1753376752398,3.28092334,3708.1,3707.8,4.516]
[1753376752739,2.69689489,3708.0,3707.8,4.516]
[1753376752935,0.5841,3708.1,3707.8,4.516]
[1753376752936,2.69694436,3707.9,3707.8,4.516]
[1753376753354,3.62884436,3707.9,3707.8,4.516]
[1753376753661,3.76404436,3707.9,3707.8,4.516]
[1753376760264,3.28104436,3707.9,3707.8,4.516]
[1753376760464,0.1352,3707.9,3707.8,4.516]
[1753376760668,0.483,3708.6,3707.8,4.516]
[1753376760969,0.1352,3708.1,3707.8,4.516]
[1753376761346,0.1352,3708.1,3707.9,2.69693936]
[1753376761688,0.1352,3708.1,3707.4,0.1352]
[1753376761689,2.69701709,3707.8,3706.9,4.475]
[1753376761836,0.5044,3707.9,3706.9,4.475]
[1753376761837,0.1352,3707.2,3706.9,4.475]
[1753376762037,0.1352,3707.2,3707.1,2.69852636]
[1753376762238,0.1352,3707.4,3707.1,0.001]
[1753376762561,0.1352,3707.4,3707.1,2.69851069]
[1753376762761,0.1352,3707.4,3707.2,2.69743802]
[1753376762968,0.1352,3707.4,3707.3,4.48]
[1753376763350,0.1352,3707.5,3707.3,4.48]
[1753376763547,3.62920808,3707.4,3707.3,4.48]
[1753376765776,3.14620808,3707.4,3707.3,4.48]
[1753376765984,3.62920808,3707.4,3707.3,4.48]
[1753376767540,0.1372,3707.5,3707.3,4.48]
[1753376767740,0.002,3707.5,3707.4,3.18370808]
[1753376767941,0.002,3707.5,3707.4,4.17268116]
[1753376768875,0.002,3707.5,3707.1,0.001]
[1753376769092,0.483,3707.4,3707.2,4.466]
[1753376769304,0.002,3707.5,3707.2,4.466]
[1753376769605,0.002,3707.5,3707.1,0.001]
[1753376769606,2.6974536,3707.2,3707.1,0.001]
[1753376769743,3.1804536,3707.2,3707.1,4.468]
[1753376769953,3.6293536,3707.2,3707.1,0.001]
[1753376770182,3.6293536,3707.2,3707.1,4.467]
[1753376770576,3.6293536,3707.2,3707.1,4.466]
[1753376770741,3.6293536,3707.2,3707.1,0.001]
[1753376770947,3.6293536,3707.2,3707.1,4.465]
[1753376772963,3.6293536,3707.2,3707.1,0.001]
[1753376775391,0.002,3707.5,3707.1,0.001]
[1753376775630,2.6974536,3707.2,3707.1,0.001]
[1753376775801,2.6974536,3707.2,3707.1,4.454]
[1753376776003,2.6974536,3707.2,3707.1,0.001]
[1753376776193,3.5918536,3707.2,3707.1,4.454]
[1753376776393,0.002,3707.5,3707.1,4.454]
[1753376776637,0.002,3707.5,3707.2,3.94584101]
[1753376776794,0.002,3707.5,3707.2,0.762]
[1753376776995,0.002,3707.5,3707.3,4.454]
[1753376777496,0.4593,3707.5,3707.4,4.454]
[1753376777696,3.15654801,3707.5,3707.4,4.454]
[1753376778032,3.59364801,3707.5,3707.4,4.454]
[1753376778202,2.69736749,3707.4,3707.1,0.001]
[1753376778407,0.002,3707.5,3707.2,4.45]
[1753376778739,0.002,3707.5,3707.1,0.001]
[1753376778903,2.83258084,3707.3,3707.2,4.45]
[1753376779298,0.002,3707.5,3707.2,4.45]
[1753376779606,0.002,3707.5,3707.3,0.9315]
[1753376779807,0.002,3707.5,3707.4,4.5892]
[1753376780007,0.002,3707.5,3707.4,5.0756]
[1753376780633,0.002,3707.5,3707.4,0.1352]
[1753376780852,0.002,3707.5,3707.4,4.451]
[1753376781256,0.002,3707.5,3707.4,5.2707]
[1753376781462,0.002,3707.5,3707.4,5.2697]
[1753376781753,0.002,3707.5,3707.1,0.1362]
[1753376782054,0.002,3707.5,3707.2,4.449]
[1753376782219,2.69738084,3707.3,3707.1,0.001]
[1753376782413,2.6974536,3707.2,3707.1,0.001]
[1753376782717,2.8326536,3707.2,3707.1,0.001]
[1753376782946,2.8326536,3707.2,3707.1,4.448]
[1753376783347,0.1352,3707.2,3707.1,4.448]
[1753376783546,2.8326536,3707.2,3707.1,4.446]
[1753376783949,0.1352,3707.2,3707.1,4.446]
[1753376784673,2.8326536,3707.2,3707.1,4.446]
[1753376785170,0.4593,3707.5,3707.1,4.446]
[1753376785171,0.002,3707.5,3707.2,0.8108]
[1753376785581,0.002,3707.5,3707.3,4.441]
[1753376785582,2.69730808,3707.4,3707.3,4.441]
[1753376786149,3.59170808,3707.4,3707.3,4.441]
[1753376786458,2.69730808,3707.4,3707.3,4.441]
[1753376786631,0.8944,3707.4,3707.1,0.001]
[1753376786832,2.6974536,3707.2,3707.1,0.001]
[1753376787037,2.6974536,3707.2,3707.1,4.44]
[1753376787570,2.6974536,3707.2,3707.1,0.001]
[1753376787770,3.5918536,3707.2,3707.1,4.437]
[1753376788684,0.002,3707.5,3707.1,4.437]
[1753376788862,2.6974536,3707.2,3707.1,4.437]
[1753376789860,3.5918536,3707.2,3707.1,4.433]
[1753376790576,3.5918536,3707.2,3707.1,4.432]
[1753376791291,3.5918536,3707.2,3707.1,0.001]
[1753376791474,3.5918536,3707.2,3707.1,4.43]
[1753376791784,3.5918536,3707.2,3707.1,0.001]
[1753376793159,6.5918536,3707.2,3707.1,0.001]
[1753376793380,7.0962536,3707.2,3707.1,0.001]
[1753376794171,5.6974536,3707.2,3707.1,0.001]
[1753376794391,6.5918536,3707.2,3707.1,0.001]
[1753376795066,2.69803582,3706.4,3706.3,0.001]
[1753376795396,5.69803582,3706.4,3706.3,0.001]
[1753376795705,6.72763582,3706.4,3706.3,0.001]
[1753376796798,7.23203582,3706.4,3706.3,0.001]
[1753376796974,2.69818142,3706.2,3706.1,1e-08]
[1753376797175,5.83338142,3706.2,3706.1,1e-08]
[1753376797504,7.27778142,3706.2,3706.1,1e-08]
[1753376797691,6.20294548,3705.7,3705.6,1e-08]
[1753376797995,6.33814548,3705.7,3705.6,1e-08]
[1753376798371,11.64654548,3705.7,3705.6,1e-08]
[1753376798581,12.19654548,3705.7,3705.6,1e-08]
[1753376798776,11.73924548,3705.7,3705.6,1e-08]
[1753376799096,12.19654548,3705.7,3705.6,1e-08]
[1753376799605,12.19754548,3705.7,3705.6,1e-08]
[1753376799813,26.69754548,3705.7,3705.6,1e-08]
[1753376800407,21.64294548,3705.7,3705.6,1e-08]
[1753376800608,6.59294548,3705.7,3705.6,1e-08]
[1753376801109,7.64734548,3705.7,3705.6,1e-08]
[1753376801311,11.51534548,3705.7,3705.6,1e-08]
[1753376801810,12.06534548,3705.7,3705.6,1e-08]
[1753376801980,12.31479288,3705.7,3705.6,1e-08]
[1753376802182,12.06534548,3705.7,3705.6,1e-08]
[1753376802797,7.64734548,3705.7,3705.6,1e-08]
[1753376802991,12.06534548,3705.7,3705.6,1e-08]
[1753376805811,7.64734548,3705.7,3705.6,1e-08]
[1753376805990,7.09734548,3705.7,3705.6,1e-08]
[1753376806499,7.64734548,3705.7,3705.6,1e-08]
[1753376806701,7.09734548,3705.7,3705.6,1e-08]
[1753376806886,3.63064548,3705.7,3705.6,1e-08]
[1753376807091,2.69854548,3705.7,3705.6,1e-08]
[1753376807309,2.69774468,3706.8,3705.7,0.7836]
[1753376807512,2.69839984,3705.9,3705.8,0.4708]
[1753376807900,2.69847266,3705.8,3705.7,0.7836]
[1753376808303,2.69854548,3705.7,3705.6,1e-08]
[1753376808502,2.69854548,3705.7,3705.6,0.47080001]
[1753376809798,2.69854548,3705.7,3705.6,1e-08]
[1753376810286,3.62764548,3705.7,3705.6,1e-08]
[1753376810490,6.76284548,3705.7,3705.6,1e-08]
[1753376810686,7.26724548,3705.7,3705.6,1e-08]
[1753376812416,11.68024548,3705.7,3705.6,1e-08]
[1753376812617,12.23024548,3705.7,3705.6,1e-08]
[1753376813248,13.85424548,3705.7,3705.6,1e-08]
[1753376814016,3.20352818,3704.9,3704.8,1e-08]
[1753376814218,10.61152818,3704.9,3704.8,1e-08]
[1753376814423,11.67582818,3704.9,3704.8,1e-08]
[1753376815127,12.22582818,3704.9,3704.8,1e-08]
[1753376817730,7.31342818,3704.9,3704.8,1e-08]
[1753376818228,6.26842818,3704.9,3704.8,1e-08]
[1753376818434,2.83432818,3704.9,3704.8,1e-08]
[1753376818833,3.26842818,3704.9,3704.8,1e-08]
[1753376819025,3.76342818,3704.9,3704.8,1e-08]
[1753376819409,2.83432818,3704.9,3704.8,1e-08]
[1753376820435,0.1352,3704.9,3704.8,0.79590001]
[1753376820637,0.1352,3704.9,3704.8,1.27210001]
[1753376820838,4.13169538,3706.2,3704.8,1.27210001]
[1753376820839,0.1352,3705.1,3704.8,1.66925124]
[1753376821013,0.1352,3705.1,3704.9,0.4762]
[1753376821425,0.1352,3705.1,3705.0,0.0054]
[1753376821625,0.1352,3705.1,3704.8,0.79590001]
[1753376821626,0.1352,3705.1,3704.8,1.26670001]
[1753376821941,0.1352,3705.1,3705.0,0.4708]
[1753376822830,0.1352,3705.1,3705.0,0.4762]
[1753376823037,2.83418248,3705.1,3705.0,0.4708]
[1753376823239,0.1352,3705.1,3705.0,0.4708]
[1753376823638,2.83418248,3705.1,3704.8,0.79590001]
[1753376823842,2.69912818,3704.9,3704.8,0.79590001]
[1753376824158,0.1352,3704.9,3704.8,1.26670001]
[1753376824867,2.83432818,3704.9,3704.8,1.26670001]
[1753376825946,0.1352,3704.9,3704.8,1.26670001]
[1753376826547,2.83432818,3704.9,3704.8,1.26670001]
[1753376826714,0.1352,3704.9,3704.8,1.26670001]
[1753376827115,2.83432818,3704.9,3704.8,1.26670001]
[1753376827517,2.83432818,3704.9,3704.8,0.79590001]
[1753376828223,0.1352,3704.9,3704.8,0.79590001]
[1753376828633,2.83432818,3704.9,3704.8,0.79590001]
[1753376830062,5.83432818,3704.9,3704.8,1e-08]
[1753376830218,6.76342818,3704.9,3704.8,1e-08]
[1753376830617,6.26842818,3704.9,3704.8,1e-08]
[1753376831027,5.83432818,3704.9,3704.8,1e-08]
[1753376831455,2.83432818,3704.9,3704.8,1e-08]
[1753376831655,0.1352,3704.9,3704.8,0.47080001]
[1753376832029,0.04087915,3705.4,3704.8,0.47080001]
[1753376832236,0.1352,3705.1,3704.9,0.7767]
[1753376832445,0.1352,3705.1,3705.0,0.4762]
[1753376833223,0.04087915,3705.4,3705.0,0.4762]
[1753376833425,0.04087915,3705.4,3705.3,2.8340368]
[1753376833634,0.04087915,3705.4,3705.3,8.02832516]
[1753376833831,0.04087915,3705.4,3705.3,9.59788143]
[1753376834565,2.69780187,3706.8,3706.2,0.8004]
[1753376834861,2.69780187,3706.8,3706.3,4.8448]
[1753376834862,0.1352,3706.5,3706.3,4.8448]
[1753376835050,0.1352,3706.5,3706.3,4.374]
[1753376835364,0.1352,3706.5,3706.4,0.4708]
[1753376836029,2.69803582,3706.4,3706.3,4.374]
[1753376836372,0.1352,3706.5,3706.3,4.374]
[1753376836661,2.83316682,3706.5,3706.3,4.374]
[1753376836961,0.4522,3706.4,3706.3,4.367]
[1753376837133,0.9432,3706.4,3706.3,4.367]
[1753376837335,6.64123582,3706.4,3706.3,4.367]
[1753376837668,2.6986183,3705.6,3705.5,0.1352]
[1753376837835,2.8338183,3705.6,3705.5,4.367]
[1753376838031,2.69876667,3705.4,3705.1,0.1352]
[1753376838232,2.8340368,3705.3,3705.2,4.365]
[1753376838733,2.83405552,3705.3,3705.2,4.365]
[1753376838956,2.83405552,3705.3,3704.8,0.48747943]
[1753376838957,2.69912818,3704.9,3704.8,1e-08]
[1753376839142,2.69912818,3704.9,3704.8,4.36400001]
[1753376839334,2.83432818,3704.9,3704.8,1e-08]
[1753376839534,2.83432818,3704.9,3704.8,4.36400001]
[1753376839535,3.77752818,3704.9,3704.8,4.36400001]
[1753376839737,3.77752818,3704.9,3704.8,1e-08]
[1753376839938,3.77752818,3704.9,3704.8,4.36400001]
[1753376840175,0.4522,3706.6,3704.8,6.01299202]
[1753376840328,0.4522,3706.6,3705.5,0.7987]
[1753376840536,2.69796019,3706.6,3705.9,2.69838991]
[1753376840874,2.69797094,3706.5,3705.9,0.4779]
[1753376841031,2.69967219,3706.9,3705.9,0.4779]
[1753376841238,2.69774468,3706.8,3705.9,0.4779]
[1753376841438,0.002,3706.9,3705.9,0.4779]
[1753376841677,2.69805074,3706.4,3705.9,0.4779]
[1753376842128,2.69783449,3706.7,3705.9,0.4779]
[1753376842332,0.493,3706.9,3705.9,0.4779]
[1753376842560,2.69802798,3706.5,3705.9,0.4779]
[1753376842735,2.69811453,3706.3,3705.6,7.06660061]
[1753376842937,2.69848411,3705.8,3705.6,4.368]
[1753376843163,2.69841431,3705.9,3705.6,4.368]
[1753376843368,2.6984516,3705.9,3705.6,4.368]
[1753376843575,0.4522,3706.4,3705.6,4.368]
[1753376843980,2.69842742,3705.9,3705.6,4.368]
[1753376844186,2.69810862,3706.3,3705.6,4.368]
[1753376844478,2.69833883,3706.0,3705.6,4.368]
[1753376844681,0.4522,3706.4,3705.6,4.368]
[1753376844846,2.69854548,3705.7,3705.6,4.368]
[1753376845179,3.0,3705.6,3705.3,4.36]
[1753376845345,2.69862888,3705.6,3705.3,4.8379]
[1753376845547,2.69862888,3705.6,3705.3,4.36]
[1753376845885,3.4522,3706.3,3705.3,4.36]
[1753376846085,3.0,3705.6,3705.3,4.36]
[1753376846255,2.69862229,3705.6,3705.3,4.36]
[1753376846457,3.0,3705.8,3705.3,4.36]
[1753376846656,3.0,3705.6,3705.3,4.36]
[1753376847363,5.69841031,3705.9,3705.4,0.4779]
[1753376847671,0.4522,3706.3,3705.5,0.4779]
[1753376847867,2.69828099,3706.1,3705.5,0.4779]
[1753376848072,3.0,3705.9,3705.5,0.4779]
[1753376848680,2.69841526,3705.9,3705.3,7.05881936]
[1753376848875,2.69849366,3705.8,3705.3,5.4598291]
[1753376849080,0.9432,3706.4,3705.3,5.4598291]
[1753376849081,2.69831282,3706.1,3705.4,0.4779]
[1753376849407,0.4522,3706.8,3705.5,0.84348691]
[1753376849578,0.4522,3706.8,3705.8,2.69840721]
[1753376849579,2.69795184,3706.6,3705.8,2.69840721]
[1753376849895,2.69795184,3706.6,3705.9,7.05038249]
[1753376850108,0.1352,3706.3,3706.0,2.6982821]
[1753376850270,0.1352,3706.3,3705.9,4.352]
[1753376850471,3.1352,3706.3,3705.9,4.352]
[1753376850682,2.83331473,3706.3,3705.9,4.352]
[1753376851192,2.69819212,3706.2,3705.9,4.352]
[1753376851504,2.69830036,3706.1,3705.9,4.352]
[1753376851690,2.69825857,3706.1,3705.9,4.352]
[1753376851891,2.69846863,3705.9,3705.6,0.1352]
[1753376852090,2.69847266,3705.8,3705.7,4.351]
[1753376852284,5.6986183,3705.6,3705.5,0.8165]
[1753376852472,5.6986183,3705.6,3705.5,4.349]
[1753376853003,6.1508183,3705.6,3705.5,4.349]
[1753376853213,5.69869113,3705.5,3705.4,0.001]
[1753376853500,6.77709113,3705.5,3705.4,0.001]
[1753376855705,0.1352,3705.5,3705.4,0.001]
[1753376855890,2.83389113,3705.5,3705.4,0.001]
[1753376856304,0.4542,3706.4,3705.5,0.7633]
[1753376856606,3.0,3705.8,3705.6,4.345]
[1753376857005,0.1352,3705.9,3705.7,0.4779]
[1753376857572,3.0,3705.8,3705.6,4.345]
[1753376857773,3.1352,3705.9,3705.6,4.345]
[1753376857975,2.69852312,3705.8,3705.6,4.345]
[1753376858505,3.1352,3705.9,3705.6,4.8229]
[1753376858870,3.1352,3705.9,3705.6,4.345]
[1753376859076,0.1352,3705.9,3705.6,4.345]
[1753376859586,3.0,3705.8,3705.6,4.345]
[1753376859998,0.1352,3705.9,3705.6,4.345]
[1753376860195,3.0,3705.8,3705.6,4.345]
[1753376860501,2.69854548,3705.7,3705.6,4.345]
[1753376860702,2.83374548,3705.7,3705.6,4.345]
[1753376861275,0.1352,3705.7,3705.6,4.345]
[1753376862675,0.002,3706.9,3706.3,2.69810862]
[1753376862908,0.002,3706.9,3706.3,7.97750862]
[1753376863107,0.002,3706.9,3706.8,2.69774468]
[1753376863272,0.002,3706.9,3706.8,7.96684468]
[1753376863478,0.002,3706.9,3706.8,8.44474468]
[1753376863794,0.002,3706.9,3706.8,9.55900468]
[1753376865094,0.002,3706.9,3706.8,9.08650468]
[1753376865407,0.002,3707.2,3707.1,3.47942636]
[1753376865594,0.002,3707.2,3707.1,7.98960162]
[1753376865801,0.002,3707.2,3707.1,8.44702636]
[1753376865998,0.002,3707.2,3707.1,9.67345655]
[1753376866206,0.002,3707.2,3707.1,9.67885655]
[1753376866374,0.002,3707.2,3707.1,6.97593019]
[1753376866579,0.002,3707.2,3707.1,9.67345655]
[1753376867336,0.002,3707.2,3707.1,6.97593019]
[1753376867513,0.002,3707.2,3707.1,5.7495]
[1753376867898,0.002,3707.2,3707.1,5.2651]
[1753376869003,2.6994536,3707.2,3707.1,5.1299]
[1753376869209,2.6994536,3707.2,3707.1,4.348]
[1753376869532,6.7499536,3707.2,3707.1,4.344]
[1753376869733,6.7499536,3707.2,3705.9,2.69838279]
[1753376869734,3.0,3707.1,3706.3,0.7767]
[1753376869878,0.1352,3706.8,3706.4,4.344]
[1753376870084,0.1352,3706.8,3706.2,0.1352]
[1753376870325,0.1352,3706.8,3706.3,4.344]
[1753376870326,2.69803582,3706.4,3706.3,4.344]
[1753376870614,3.14913582,3706.4,3706.3,4.344]
[1753376870909,6.74853582,3706.4,3706.3,4.344]
[1753376872987,6.28433582,3706.4,3706.3,4.344]
[1753376873412,3.5863,3706.4,3706.3,4.344]
[1753376873647,3.1352,3706.4,3706.3,4.344]
[1753376873810,5.83323582,3706.4,3706.3,4.344]
[1753376876025,6.28433582,3706.4,3706.3,4.344]
[1753376876933,6.28433582,3706.4,3706.3,4.345]
[1753376877102,6.74853582,3706.4,3706.3,0.001]
[1753376880706,2.69832703,3706.0,3705.5,0.001]
[1753376880913,2.6986183,3705.6,3705.5,0.001]
[1753376881230,2.8338183,3705.6,3705.5,0.001]
[1753376881535,3.7491183,3705.6,3705.5,0.001]
[1753376881900,7.2964183,3705.6,3705.5,0.001]
[1753376882218,6.7491183,3705.6,3705.5,0.001]
[1753376882436,5.8338183,3705.6,3705.5,0.001]
[1753376882597,6.1497183,3705.6,3705.5,0.001]
[1753376882800,6.7491183,3705.6,3705.5,0.001]
[1753376884301,3.1352,3705.6,3705.5,0.001]
[1753376884609,0.4642,3706.0,3705.5,0.001]
[1753376884610,3.0,3705.9,3705.5,0.7519]
[1753376884939,2.69855578,3705.7,3705.5,0.7519]
[1753376885136,2.6986183,3705.6,3705.5,0.7519]
[1753376885431,5.6986183,3705.6,3705.5,4.345]
[1753376885733,3.0,3705.6,3705.5,4.345]
[1753376885934,0.1352,3705.8,3705.5,4.345]
[1753376886228,5.83368488,3705.8,3705.5,4.345]
[1753376886433,0.1352,3705.8,3705.5,4.345]
[1753376886645,2.83368509,3705.8,3705.5,4.345]
[1753376886830,0.1352,3705.8,3705.5,4.345]
[1753376887010,0.9153,3707.1,3705.7,0.813]
[1753376887213,2.69758457,3707.1,3706.4,2.69802479]
[1753376887423,0.002,3707.2,3706.4,2.69802479]
[1753376887424,2.8346699,3707.2,3706.6,0.9236]
[1753376887737,3.0,3707.1,3706.6,0.9505789]
[1753376888131,2.8346699,3707.2,3706.7,0.4844]
[1753376888132,0.1372,3707.2,3706.7,0.4844]
[1753376888439,3.1372,3707.2,3706.8,0.4844]
[1753376888666,3.1372,3707.2,3706.9,4.344]
[1753376888803,2.697604,3707.0,3706.9,4.344]
[1753376889003,5.697604,3707.0,3706.9,4.344]
[1753376889715,3.0,3707.0,3706.9,4.344]
[1753376890658,0.002,3707.2,3706.9,4.87076]
[1753376890856,0.002,3707.2,3706.9,5.00596]
[1753376892019,0.002,3707.2,3707.1,0.7644]
[1753376892224,2.69896746,3707.9,3707.7,0.55]
[1753376892225,0.002,3707.9,3707.7,0.55]
[1753376892484,0.0006,3708.0,3707.9,3.24694436]
[1753376892661,0.0006,3708.0,3707.9,4.01134436]
[1753376892976,0.002,3708.7,3707.9,4.01134436]
[1753376892978,0.002,3708.7,3708.6,3.45803531]
[1753376893267,0.002,3708.7,3708.6,7.98719966]
[1753376893468,0.002,3708.7,3708.6,7.96023531]
[1753376893731,0.002,3708.7,3708.6,1.96247592]
[1753376893856,0.002,3708.7,3708.6,6.81287592]
[1753376895386,0.002,3708.7,3708.6,6.81187592]
[1753376896846,0.002,3708.7,3708.6,6.79157592]
[1753376897374,0.002,3708.7,3708.6,9.48801123]
[1753376899570,0.002,3708.7,3708.6,1.96247592]
[1753376899766,0.002,3708.7,3708.6,7.94823531]
[1753376899982,0.002,3708.7,3708.6,8.41233531]
[1753376900574,0.5499,3708.5,3704.8,0.10000001]
[1753376900871,0.002,3708.7,3707.8,0.8167]
[1753376901088,0.002,3708.7,3707.0,4.98627599]
[1753376901089,0.002,3708.7,3708.5,0.8167]
[1753376901297,0.002,3708.7,3708.6,4.4972]
[1753376901470,0.002,3708.7,3708.6,4.9613]
[1753376901670,0.002,3708.7,3708.6,4.98826435]
[1753376901873,0.002,3708.7,3708.6,0.62626435]
[1753376902215,0.002,3708.7,3708.6,7.68569966]
[1753376902355,0.002,3710.2,3709.5,0.7565]
[1753376902557,0.002,3710.2,3710.1,0.1344]
[1753376902811,0.002,3710.2,3710.1,4.364]
[1753376903093,3.002,3710.2,3710.1,4.364]
[1753376903260,0.002,3710.2,3710.1,4.364]
[1753376903458,0.4905,3710.2,3710.1,4.38]
[1753376903696,1.0891,3710.2,3709.6,7.017]
[1753376903917,5.83003576,3709.7,3709.6,7.017]
[1753376904287,5.83003576,3709.7,3706.8,2.69767538]
[1753376904288,0.5499,3708.1,3707.0,0.764]
[1753376904486,0.1352,3707.6,3707.1,0.1352]
[1753376904720,0.4885,3707.5,3707.2,4.403]
[1753376905487,3.5499,3708.1,3707.3,2.69731234]
[1753376905830,0.1352,3707.9,3707.4,4.5362]
[1753376906034,0.1352,3707.9,3707.5,4.401]
[1753376907003,2.69680051,3708.1,3707.5,4.401]
[1753376907204,3.0,3708.2,3707.5,4.401]
[1753376907425,0.1352,3708.1,3707.6,2.69716258]
[1753376907905,0.1352,3708.1,3707.5,7.65127875]
[1753376908100,5.83200551,3708.1,3707.5,4.401]
[1753376908438,0.1352,3707.7,3707.5,4.401]
[1753376908589,3.64986258,3707.6,3707.5,4.401]
[1753376908794,3.16136258,3707.6,3707.5,4.401]
[1753376909015,3.64986258,3707.6,3707.5,4.401]
[1753376909219,0.9527,3707.6,3707.5,4.401]
[1753376909539,0.4885,3708.2,3707.5,4.401]
[1753376909693,0.1352,3708.1,3707.5,4.5362]
[1753376910237,3.0,3708.3,3707.5,4.401]
[1753376910403,0.1352,3708.2,3707.7,0.1352]
[1753376910731,2.69644895,3708.6,3707.7,0.1352]
[1753376910940,3.1352,3708.3,3707.7,0.1352]
[1753376911459,3.0,3708.1,3707.7,0.1352]
[1753376911606,3.0,3708.2,3707.7,0.1352]
[1753376911792,5.6967303,3708.2,3707.7,0.1352]
[1753376911993,6.1852303,3708.2,3707.7,0.1352]
[1753376912436,3.4885,3708.2,3707.7,2.83228248]
[1753376912620,0.1352,3708.3,3707.7,1.17466808]
[1753376912804,0.1352,3708.3,3707.8,1.2628]
[1753376913007,5.83186225,3708.3,3707.9,4.388]
[1753376913318,0.1352,3708.3,3707.9,4.388]
[1753376914241,3.1352,3708.3,3707.9,4.388]
[1753376914537,0.1352,3708.3,3707.9,4.388]
[1753376914741,2.83187016,3708.3,3707.9,4.388]
[1753376914890,2.83187016,3708.3,3707.9,5.23631384]
[1753376914891,3.1352,3708.3,3707.9,5.23631384]